[Event "*** Titled Tuesday Blitz"]
[Site "Chess.com"]
[Date "2019.06.04"]
[Round "4"]
[White "MasterKroket"]
[Black "TastyFrenchFries"]
[Result "1/2-1/2"]
[WhiteElo "2357"]
[BlackElo "2458"]
[TimeControl "180+2"]
[EndTime "13:50:11 PDT"]
[Termination "Game drawn by agreement"]

1. d4 {[%clk 0:03:01.9]} 1... Nf6 {[%clk 0:03:00.5]} 2. c4 {[%clk 0:03:03.1]}
2... c5 {[%clk 0:03:00.1]} 3. d5 {[%clk 0:03:03.5]} 3... e5 {[%clk 0:03:01]} 4.
Nc3 {[%clk 0:03:03.7]} 4... d6 {[%clk 0:03:02.2]} 5. e4 {[%clk 0:03:04.7]} 5...
Be7 {[%clk 0:03:00.9]} 6. Be2 {[%clk 0:03:04.9]} 6... O-O {[%clk 0:02:47.2]} 7.
a3 {[%clk 0:03:03.9]} 7... Ne8 {[%clk 0:02:42]} 8. Bg4 {[%clk 0:03:02]} 8...
Bxg4 {[%clk 0:02:36.5]} 9. Qxg4 {[%clk 0:03:03.9]} 9... Nd7 {[%clk 0:02:33.3]}
10. Be3 {[%clk 0:02:54.9]} 10... a6 {[%clk 0:02:23.8]} 11. Nf3 {[%clk
0:02:52.9]} 11... g6 {[%clk 0:02:20]} 12. O-O {[%clk 0:02:52.5]} 12... Kh8
{[%clk 0:02:16.5]} 13. Bh6 {[%clk 0:02:48.5]} 13... Ng7 {[%clk 0:02:13.5]} 14.
Nd2 {[%clk 0:02:29.4]} 14... Nf6 {[%clk 0:02:12.2]} 15. Qh3 {[%clk 0:02:28.4]}
15... Ng8 {[%clk 0:02:12.5]} 16. Be3 {[%clk 0:02:21.1]} 16... f5 {[%clk
0:02:10.3]} 17. f3 {[%clk 0:02:20.2]} 17... f4 {[%clk 0:02:08.9]} 18. Bf2 {[%clk
0:02:21.1]} 18... Qc8 {[%clk 0:02:06.4]} 19. Qxc8 {[%clk 0:02:16.4]} 19... Rfxc8
{[%clk 0:02:08.3]} 20. b4 {[%clk 0:02:17.6]} 20... b6 {[%clk 0:01:59.6]} 21.
bxc5 {[%clk 0:02:18.7]} 21... bxc5 {[%clk 0:01:59.6]} 22. Rab1 {[%clk
0:02:20.2]} 22... Rab8 {[%clk 0:01:59.3]} 23. Na4 {[%clk 0:02:18.6]} 23... Bd8
{[%clk 0:01:57.8]} 24. Rxb8 {[%clk 0:02:05.6]} 24... Rxb8 {[%clk 0:01:58.3]} 25.
Rb1 {[%clk 0:02:07.3]} 25... Rxb1+ {[%clk 0:01:58.2]} 26. Nxb1 {[%clk
0:02:09.2]} 26... Nf6 {[%clk 0:01:48.8]} 27. Nd2 {[%clk 0:02:10.2]} 27... Nd7
{[%clk 0:01:48.4]} 28. Nb3 {[%clk 0:02:11]} 28... Ne8 {[%clk 0:01:48.1]} 29. Be1
{[%clk 0:02:11.2]} 29... Kg7 {[%clk 0:01:47.6]} 30. Ba5 {[%clk 0:02:12.1]} 30...
Bxa5 {[%clk 0:01:46.5]} 31. Nxa5 {[%clk 0:02:14]} 31... Kf7 {[%clk 0:01:45.7]}
32. Nc6 {[%clk 0:02:12.6]} 32... Nc7 {[%clk 0:01:44.9]} 33. Nd8+ {[%clk
0:02:00.8]} 33... Ke7 {[%clk 0:01:41.6]} 34. Nb7 {[%clk 0:02:02.4]} 34... Na8
{[%clk 0:01:36.6]} 35. Kf2 {[%clk 0:01:51.4]} 35... Nab6 {[%clk 0:01:36.7]} 36.
Nb2 {[%clk 0:01:52.6]} 36... g5 {[%clk 0:01:34.2]} 37. Ke2 {[%clk 0:01:49.6]}
37... h5 {[%clk 0:01:33.2]} 38. h3 {[%clk 0:01:50]} 38... Nf6 {[%clk 0:01:27.5]}
39. Na5 {[%clk 0:01:43.2]} 39... Kd7 {[%clk 0:01:25.7]} 40. Nb3 {[%clk
0:01:43.8]} 40... Ne8 {[%clk 0:01:22.5]} 41. a4 {[%clk 0:01:37.7]} 41... Kc7
{[%clk 0:01:14.1]} 42. a5 {[%clk 0:01:39.1]} 42... Nd7 {[%clk 0:01:13.9]} 43.
Kf2 {[%clk 0:01:29.2]} 43... Nef6 {[%clk 0:01:12.3]} 44. Nd3 {[%clk 0:01:24.5]}
1/2-1/2

[Event "*** Titled Tuesday Blitz"]
[Site "Chess.com"]
[Date "2019.06.04"]
[Round "4"]
[White "Rhinos1"]
[Black "ethylalcohol"]
[Result "1-0"]
[WhiteElo "2087"]
[BlackElo "2038"]
[TimeControl "180+2"]
[EndTime "13:50:20 PDT"]
[Termination "Rhinos1 won on time"]

1. e4 {[%clk 0:02:59.5]} 1... e6 {[%clk 0:03:00.6]} 2. d3 {[%clk 0:03:00.2]}
2... d5 {[%clk 0:03:01.2]} 3. Nd2 {[%clk 0:03:01.2]} 3... Nf6 {[%clk 0:03:01.4]}
4. g3 {[%clk 0:02:59.9]} 4... c5 {[%clk 0:02:57.6]} 5. Bg2 {[%clk 0:03:00.5]}
5... Nc6 {[%clk 0:02:58.5]} 6. Ngf3 {[%clk 0:03:00.6]} 6... Be7 {[%clk
0:02:55.8]} 7. O-O {[%clk 0:02:52.9]} 7... O-O {[%clk 0:02:56.3]} 8. Qe2 {[%clk
0:02:44.7]} 8... Qc7 {[%clk 0:02:51.2]} 9. c3 {[%clk 0:02:44.6]} 9... dxe4
{[%clk 0:02:39.5]} 10. dxe4 {[%clk 0:02:44.6]} 10... e5 {[%clk 0:02:40.3]} 11.
a4 {[%clk 0:02:43.1]} 11... Bg4 {[%clk 0:02:34.4]} 12. h3 {[%clk 0:02:34]} 12...
Bh5 {[%clk 0:02:34.2]} 13. Nc4 {[%clk 0:02:22]} 13... Rad8 {[%clk 0:02:17]} 14.
Be3 {[%clk 0:02:13.9]} 14... b6 {[%clk 0:02:06.2]} 15. Bg5 {[%clk 0:01:51.4]}
15... h6 {[%clk 0:01:58.9]} 16. Bxf6 {[%clk 0:01:51.1]} 16... Bxf6 {[%clk
0:01:58.5]} 17. Ne3 {[%clk 0:01:46.5]} 17... Ne7 {[%clk 0:01:55.8]} 18. Rad1
{[%clk 0:01:43.1]} 18... Bg6 {[%clk 0:01:46.6]} 19. Nh2 {[%clk 0:01:38.3]} 19...
Qb7 {[%clk 0:01:39.7]} 20. Nd5 {[%clk 0:01:22.6]} 20... Nxd5 {[%clk 0:01:30.9]}
21. exd5 {[%clk 0:01:24.5]} 21... Rd6 {[%clk 0:00:46.1]} 22. Ng4 {[%clk
0:01:17.9]} 22... Re8 {[%clk 0:00:32.3]} 23. f4 {[%clk 0:01:12.7]} 23... Qd7
{[%clk 0:00:07.2]} 24. Nxe5 {[%clk 0:01:02.7]} 1-0

[Event "*** Titled Tuesday Blitz"]
[Site "Chess.com"]
[Date "2019.06.04"]
[Round "4"]
[White "Hikaru"]
[Black "mitrabhaa"]
[Result "1-0"]
[WhiteElo "3200"]
[BlackElo "2706"]
[TimeControl "180+2"]
[EndTime "13:50:32 PDT"]
[Termination "Hikaru won by resignation"]

1. Nf3 {[%clk 0:03:01.9]} 1... Nf6 {[%clk 0:03:00.5]} 2. b3 {[%clk 0:03:01.9]}
2... b6 {[%clk 0:02:59.5]} 3. Bb2 {[%clk 0:03:02.3]} 3... Bb7 {[%clk 0:03:01]}
4. g3 {[%clk 0:03:01.1]} 4... g6 {[%clk 0:02:56.5]} 5. Bg2 {[%clk 0:03:01.5]}
5... Bg7 {[%clk 0:02:57.6]} 6. d4 {[%clk 0:03:01.4]} 6... O-O {[%clk 0:02:57.5]}
7. c4 {[%clk 0:03:02.2]} 7... Ne4 {[%clk 0:02:57.6]} 8. Qc2 {[%clk 0:02:59.2]}
8... e6 {[%clk 0:02:45.4]} 9. Nfd2 {[%clk 0:02:55.8]} 9... Nd6 {[%clk
0:02:44.5]} 10. Bxb7 {[%clk 0:02:53]} 10... Nxb7 {[%clk 0:02:45.3]} 11. O-O
{[%clk 0:02:54.9]} 11... d6 {[%clk 0:02:40.8]} 12. e3 {[%clk 0:02:51.6]} 12...
Nd7 {[%clk 0:02:42]} 13. Nc3 {[%clk 0:02:53]} 13... c6 {[%clk 0:02:42.8]} 14.
Rad1 {[%clk 0:02:48.6]} 14... Re8 {[%clk 0:02:43.4]} 15. Nf3 {[%clk 0:02:48.5]}
15... Qf6 {[%clk 0:02:42.1]} 16. Kg2 {[%clk 0:02:49.4]} 16... Rac8 {[%clk
0:02:40.3]} 17. e4 {[%clk 0:02:50.2]} 17... h6 {[%clk 0:02:36.4]} 18. Rfe1
{[%clk 0:02:47.1]} 18... Qd8 {[%clk 0:02:35.2]} 19. e5 {[%clk 0:02:45.2]} 19...
d5 {[%clk 0:02:35.7]} 20. h4 {[%clk 0:02:46.5]} 20... h5 {[%clk 0:02:33.2]} 21.
Bc1 {[%clk 0:02:44.8]} 21... Nf8 {[%clk 0:02:30.9]} 22. Bg5 {[%clk 0:02:40.1]}
22... Qd7 {[%clk 0:02:32.3]} 23. Qd2 {[%clk 0:02:39.5]} 23... Na5 {[%clk
0:02:25.4]} 24. Qf4 {[%clk 0:02:33.4]} 24... Nh7 {[%clk 0:02:07.2]} 25. c5
{[%clk 0:02:32.9]} 25... bxc5 {[%clk 0:02:07.6]} 26. dxc5 {[%clk 0:02:34.3]}
26... Nb7 {[%clk 0:02:07.3]} 27. Ne4 {[%clk 0:02:29.3]} 27... Nxg5 {[%clk
0:01:52.7]} 28. hxg5 {[%clk 0:02:24.3]} 28... Qc7 {[%clk 0:01:32.2]} 29. Nf6+
{[%clk 0:02:24.6]} 29... Kf8 {[%clk 0:01:32.5]} 30. b4 {[%clk 0:02:25.6]} 30...
Red8 {[%clk 0:01:32.4]} 31. Nd4 {[%clk 0:02:24.6]} 31... Ke7 {[%clk 0:01:32.3]}
32. Rd3 {[%clk 0:02:21.1]} 32... a5 {[%clk 0:01:32.1]} 33. a3 {[%clk 0:02:22.1]}
33... Ra8 {[%clk 0:01:33.3]} 34. Rf3 {[%clk 0:02:23.2]} 34... Rf8 {[%clk
0:01:33.6]} 35. Nh7 {[%clk 0:02:24]} 35... axb4 {[%clk 0:01:30.5]} 36. axb4
{[%clk 0:02:25.9]} 36... Nd8 {[%clk 0:01:27]} 37. Nxf8 {[%clk 0:02:18.9]} 37...
Kxf8 {[%clk 0:01:28]} 38. g4 {[%clk 0:02:15.6]} 38... hxg4 {[%clk 0:01:28.1]}
39. Qxg4 {[%clk 0:02:17.5]} 39... Ke7 {[%clk 0:01:27]} 40. Qf4 {[%clk
0:02:12.8]} 40... Ra4 {[%clk 0:01:26]} 41. Rb3 {[%clk 0:02:11.4]} 41... Qa7
{[%clk 0:01:25.5]} 42. Ree3 {[%clk 0:02:10.8]} 42... Ra1 {[%clk 0:01:25.9]} 43.
b5 {[%clk 0:02:10.9]} 43... cxb5 {[%clk 0:01:26.7]} 44. Rxb5 {[%clk 0:02:09.2]}
44... Qa2 {[%clk 0:01:25]} 45. Rf3 {[%clk 0:02:06.6]} 45... Qa6 {[%clk
0:01:17.4]} 46. c6 {[%clk 0:02:01.9]} 46... Qa4 {[%clk 0:00:56.5]} 47. c7 {[%clk
0:02:01.5]} 47... Qc4 {[%clk 0:00:57.1]} 48. Nf5+ {[%clk 0:01:51.3]} 1-0

[Event "*** Titled Tuesday Blitz"]
[Site "Chess.com"]
[Date "2019.06.04"]
[Round "4"]
[White "Ruchess27"]
[Black "Shant_Sargsyan"]
[Result "0-1"]
[WhiteElo "2263"]
[BlackElo "3031"]
[TimeControl "180+2"]
[EndTime "13:50:32 PDT"]
[Termination "Shant_Sargsyan won by resignation"]

1. d4 {[%clk 0:03:01.9]} 1... Nf6 {[%clk 0:03:00.3]} 2. g3 {[%clk 0:03:02.6]}
2... d5 {[%clk 0:03:01.3]} 3. Bg2 {[%clk 0:03:03.5]} 3... c5 {[%clk 0:03:02.1]}
4. Nf3 {[%clk 0:03:04.7]} 4... cxd4 {[%clk 0:03:00.7]} 5. O-O {[%clk 0:03:06.2]}
5... h6 {[%clk 0:03:00]} 6. b3 {[%clk 0:03:05]} 6... h5 {[%clk 0:03:00.2]} 7.
Bb2 {[%clk 0:03:01.3]} 7... h4 {[%clk 0:03:01.6]} 8. Bxd4 {[%clk 0:02:56.8]}
8... Nc6 {[%clk 0:03:02.3]} 9. Nxh4 {[%clk 0:02:36.7]} 9... e5 {[%clk
0:03:01.6]} 10. Be3 {[%clk 0:02:17]} 10... Be6 {[%clk 0:02:51.4]} 11. Bg5 {[%clk
0:02:12.5]} 11... Rh5 {[%clk 0:02:46.2]} 12. Bxf6 {[%clk 0:01:24.8]} 12... Qxf6
{[%clk 0:02:48.1]} 13. e4 {[%clk 0:01:25.7]} 13... Rxh4 {[%clk 0:02:49.4]} 14.
gxh4 {[%clk 0:01:26]} 14... dxe4 {[%clk 0:02:48.8]} 15. Nc3 {[%clk 0:01:21]}
15... Qxh4 {[%clk 0:02:46.4]} 16. Nxe4 {[%clk 0:01:10.8]} 16... Rd8 {[%clk
0:02:47.5]} 17. Qe1 {[%clk 0:00:19.9]} 17... Nd4 {[%clk 0:02:48.4]} 18. f3
{[%clk 0:00:18.5]} 18... Qf4 {[%clk 0:02:25.2]} 19. Rd1 {[%clk 0:00:16.3]} 19...
Rc8 {[%clk 0:01:52.2]} 20. c3 {[%clk 0:00:15.1]} 20... Nf5 {[%clk 0:01:53.5]}
21. Qe2 {[%clk 0:00:09.5]} 21... a6 {[%clk 0:01:51.8]} 22. Qf2 {[%clk
0:00:06.6]} 22... Ne3 {[%clk 0:01:47.7]} 23. Kh1 {[%clk 0:00:05.8]} 23... Be7
{[%clk 0:01:44.9]} 24. Rfe1 {[%clk 0:00:03.8]} 24... Nxd1 {[%clk 0:01:45.9]} 25.
Rxd1 {[%clk 0:00:05.7]} 25... f5 {[%clk 0:01:32.8]} 26. Ng3 {[%clk 0:00:06.6]}
26... Rd8 {[%clk 0:01:28.4]} 27. Rxd8+ {[%clk 0:00:06.5]} 27... Bxd8 {[%clk
0:01:30.3]} 28. c4 {[%clk 0:00:07.1]} 28... g6 {[%clk 0:01:27.7]} 29. Bf1 {[%clk
0:00:07.9]} 29... e4 {[%clk 0:01:24]} 30. Bg2 {[%clk 0:00:06.6]} 30... e3 {[%clk
0:01:22]} 31. Qe2 {[%clk 0:00:07.5]} 31... Qd4 {[%clk 0:01:23.1]} 32. Nf1 {[%clk
0:00:08.2]} 32... f4 {[%clk 0:01:24.6]} 0-1

[Event "*** Titled Tuesday Blitz"]
[Site "Chess.com"]
[Date "2019.06.04"]
[Round "4"]
[White "Jbd735"]
[Black "Blitzstream"]
[Result "0-1"]
[WhiteElo "2428"]
[BlackElo "2678"]
[TimeControl "180+2"]
[EndTime "13:50:32 PDT"]
[Termination "Blitzstream won by resignation"]

1. d4 {[%clk 0:03:01.9]} 1... d5 {[%clk 0:03:01]} 2. Nf3 {[%clk 0:03:02.9]} 2...
Nf6 {[%clk 0:03:01.6]} 3. Bf4 {[%clk 0:03:02.1]} 3... c5 {[%clk 0:03:02.2]} 4.
c3 {[%clk 0:03:00.8]} 4... Nc6 {[%clk 0:03:03.2]} 5. e3 {[%clk 0:02:59.4]} 5...
Qb6 {[%clk 0:03:04.2]} 6. Qb3 {[%clk 0:02:58.1]} 6... c4 {[%clk 0:03:05.1]} 7.
Qxb6 {[%clk 0:02:26.5]} 7... axb6 {[%clk 0:03:07]} 8. Na3 {[%clk 0:02:25.5]}
8... Ra5 {[%clk 0:02:55.7]} 9. Bc7 {[%clk 0:02:20.3]} 9... Ra6 {[%clk
0:02:52.1]} 10. Be2 {[%clk 0:01:48.6]} 10... Bf5 {[%clk 0:02:41.3]} 11. Nh4
{[%clk 0:01:15.6]} 11... Bd7 {[%clk 0:02:38.1]} 12. O-O {[%clk 0:01:03.2]} 12...
Ne4 {[%clk 0:01:52.4]} 13. Nc2 {[%clk 0:00:42.7]} 13... e6 {[%clk 0:01:47]} 14.
f3 {[%clk 0:00:33.4]} 14... Nd6 {[%clk 0:01:25.3]} 15. g3 {[%clk 0:00:31.7]}
15... Nb5 {[%clk 0:01:14.5]} 16. Bf4 {[%clk 0:00:23.5]} 16... f6 {[%clk
0:01:13.8]} 17. a4 {[%clk 0:00:18.6]} 17... Nba7 {[%clk 0:01:12.6]} 18. Bc7
{[%clk 0:00:17.3]} 18... Na5 {[%clk 0:00:52.4]} 19. Nb4 {[%clk 0:00:12]} 19...
Bxb4 {[%clk 0:00:51.7]} 20. cxb4 {[%clk 0:00:13.9]} 20... Nb3 {[%clk 0:00:52.9]}
21. b5 {[%clk 0:00:14.7]} 21... Nxb5 {[%clk 0:00:48.8]} 22. axb5 {[%clk
0:00:10.2]} 22... Rxa1 {[%clk 0:00:50.7]} 23. Rxa1 {[%clk 0:00:09.8]} 23... Nxa1
{[%clk 0:00:52.6]} 24. Bxb6 {[%clk 0:00:11]} 24... Bxb5 {[%clk 0:00:51.2]} 25.
Ng2 {[%clk 0:00:09.5]} 25... Nb3 {[%clk 0:00:51.3]} 26. e4 {[%clk 0:00:07.8]}
26... Kd7 {[%clk 0:00:52]} 27. Ne3 {[%clk 0:00:08]} 27... Kc6 {[%clk 0:00:52.4]}
28. Bc5 {[%clk 0:00:07.7]} 28... Nxc5 {[%clk 0:00:53.3]} 29. exd5+ {[%clk
0:00:09.3]} 29... exd5 {[%clk 0:00:54.3]} 30. dxc5 {[%clk 0:00:11.2]} 30... Kxc5
{[%clk 0:00:56.2]} 0-1

[Event "*** Titled Tuesday Blitz"]
[Site "Chess.com"]
[Date "2019.06.04"]
[Round "4"]
[White "DrMelekess"]
[Black "kleinebeer98"]
[Result "0-1"]
[WhiteElo "2732"]
[BlackElo "2708"]
[TimeControl "180+2"]
[EndTime "13:50:40 PDT"]
[Termination "kleinebeer98 won by resignation"]

1. d4 {[%clk 0:02:10.2]} 1... d5 {[%clk 0:03:00.7]} 2. Nf3 {[%clk 0:02:10.5]}
2... Nc6 {[%clk 0:03:02.6]} 3. c4 {[%clk 0:02:06.9]} 3... Bg4 {[%clk 0:03:03.7]}
4. cxd5 {[%clk 0:02:07.1]} 4... Bxf3 {[%clk 0:03:05.2]} 5. gxf3 {[%clk 0:02:09]}
5... Qxd5 {[%clk 0:03:06.2]} 6. e3 {[%clk 0:02:10.2]} 6... e5 {[%clk 0:03:07.7]}
7. Nc3 {[%clk 0:02:10.7]} 7... Bb4 {[%clk 0:03:09.3]} 8. Bd2 {[%clk 0:02:11.5]}
8... Bxc3 {[%clk 0:03:10.8]} 9. bxc3 {[%clk 0:02:13.4]} 9... Qd6 {[%clk
0:03:12.1]} 10. Rb1 {[%clk 0:01:57.1]} 10... O-O-O {[%clk 0:03:05.7]} 11. Qb3
{[%clk 0:01:47.1]} 11... b6 {[%clk 0:03:05.7]} 12. Qxf7 {[%clk 0:01:03.7]} 12...
Nf6 {[%clk 0:03:06.2]} 13. Qc4 {[%clk 0:01:01.1]} 13... Kb8 {[%clk 0:02:54.6]}
14. Be2 {[%clk 0:00:58]} 14... Rhf8 {[%clk 0:02:46.4]} 15. Kd1 {[%clk
0:00:53.2]} 15... g5 {[%clk 0:02:42.4]} 16. h3 {[%clk 0:00:51.9]} 16... h5
{[%clk 0:02:43.3]} 17. Rg1 {[%clk 0:00:47.4]} 17... g4 {[%clk 0:02:44.3]} 18.
hxg4 {[%clk 0:00:43.4]} 18... hxg4 {[%clk 0:02:45.6]} 19. Kc2 {[%clk 0:00:43.2]}
19... Nd7 {[%clk 0:02:07.1]} 20. Rxg4 {[%clk 0:00:26.3]} 20... exd4 {[%clk
0:02:08.4]} 21. Rxd4 {[%clk 0:00:18]} 21... Nxd4+ {[%clk 0:02:06.5]} 22. cxd4
{[%clk 0:00:16.6]} 22... Ne5 {[%clk 0:02:05.9]} 23. Qb4 {[%clk 0:00:17.5]} 23...
Qg6+ {[%clk 0:02:04.3]} 24. Kb2 {[%clk 0:00:16.2]} 24... Nxf3 {[%clk 0:01:54.3]}
25. Bc3 {[%clk 0:00:16.5]} 25... Ng1 {[%clk 0:01:47.4]} 26. Ba6 {[%clk
0:00:16.1]} 26... Rxf2+ {[%clk 0:01:47.1]} 27. Ka1 {[%clk 0:00:17.8]} 27... Ne2
{[%clk 0:01:44.4]} 28. Bb2 {[%clk 0:00:14.2]} 28... Rh8 {[%clk 0:01:37.2]} 29.
d5 {[%clk 0:00:11.7]} 29... Qxb1+ {[%clk 0:01:36.3]} 30. Kxb1 {[%clk 0:00:11.1]}
30... Rh1+ {[%clk 0:01:38.2]} 31. Bc1 {[%clk 0:00:12.5]} 31... Rxc1+ {[%clk
0:01:34.7]} 32. Kb2 {[%clk 0:00:13.5]} 32... Nc3+ {[%clk 0:01:29.3]} 33. Ka3
{[%clk 0:00:04.7]} 33... Rxa2+ {[%clk 0:01:29.4]} 34. Kb3 {[%clk 0:00:06.1]}
34... Rb1+ {[%clk 0:01:30.4]} 0-1

[Event "*** Titled Tuesday Blitz"]
[Site "Chess.com"]
[Date "2019.06.04"]
[Round "4"]
[White "ellennilssen"]
[Black "Chempiblinka"]
[Result "0-1"]
[WhiteElo "2047"]
[BlackElo "2213"]
[TimeControl "180+2"]
[EndTime "13:50:46 PDT"]
[Termination "Chempiblinka won by resignation"]

1. d4 {[%clk 0:02:58]} 1... Nf6 {[%clk 0:03:01.1]} 2. c4 {[%clk 0:02:59.4]} 2...
c5 {[%clk 0:03:02.2]} 3. d5 {[%clk 0:02:59.1]} 3... e6 {[%clk 0:03:02.9]} 4. Nc3
{[%clk 0:03:00.2]} 4... exd5 {[%clk 0:03:04.1]} 5. cxd5 {[%clk 0:03:02.1]} 5...
Bd6 {[%clk 0:03:05.1]} 6. e4 {[%clk 0:03:02]} 6... Qe7 {[%clk 0:03:05.4]} 7. Bd3
{[%clk 0:02:58.7]} 7... Bc7 {[%clk 0:03:06.3]} 8. Nge2 {[%clk 0:02:58.8]} 8...
d6 {[%clk 0:03:07.4]} 9. O-O {[%clk 0:02:58.4]} 9... a6 {[%clk 0:03:07.9]} 10.
a4 {[%clk 0:02:59.1]} 10... O-O {[%clk 0:03:08.9]} 11. Ra3 {[%clk 0:02:58.3]}
11... Nbd7 {[%clk 0:03:08.2]} 12. f4 {[%clk 0:02:54.8]} 12... Re8 {[%clk
0:03:09.1]} 13. Ng3 {[%clk 0:02:54]} 13... Nf8 {[%clk 0:03:09.8]} 14. h3 {[%clk
0:02:48.3]} 14... c4 {[%clk 0:03:03.7]} 15. Bxc4 {[%clk 0:02:37.6]} 15... Bb6+
{[%clk 0:03:04.7]} 16. Kh1 {[%clk 0:02:34.4]} 16... Ng4 {[%clk 0:03:05.6]} 17.
Qf3 {[%clk 0:02:30.4]} 17... Qh4 {[%clk 0:03:04.2]} 18. Nd1 {[%clk 0:02:14.1]}
18... Bc5 {[%clk 0:02:52.2]} 19. Rd3 {[%clk 0:02:11.3]} 19... Bd7 {[%clk
0:02:51.1]} 20. b3 {[%clk 0:02:09.8]} 20... b5 {[%clk 0:02:51.1]} 21. axb5
{[%clk 0:02:00.3]} 21... axb5 {[%clk 0:02:51.7]} 22. Bxb5 {[%clk 0:01:27.5]}
22... Bxb5 {[%clk 0:02:51.4]} 23. Nf5 {[%clk 0:01:28.7]} 23... Qh5 {[%clk
0:02:42.6]} 24. Bb2 {[%clk 0:01:04.2]} 24... Bxd3 {[%clk 0:02:35.6]} 25. Qxd3
{[%clk 0:01:00.8]} 25... Nf6 {[%clk 0:02:35]} 26. g4 {[%clk 0:00:58.6]} 26...
Qg6 {[%clk 0:02:32.2]} 27. g5 {[%clk 0:00:55.6]} 27... Rxe4 {[%clk 0:02:07]} 28.
Nh4 {[%clk 0:00:43.3]} 28... Qh5 {[%clk 0:01:57.8]} 29. gxf6 {[%clk 0:00:41.2]}
29... Qxh4 {[%clk 0:01:58.8]} 30. fxg7 {[%clk 0:00:31.8]} 30... Ng6 {[%clk
0:01:56]} 31. Bf6 {[%clk 0:00:23.6]} 31... Qxf6 {[%clk 0:01:46.6]} 32. Qxe4
{[%clk 0:00:24.9]} 32... Qd4 {[%clk 0:01:30.3]} 33. Qf3 {[%clk 0:00:22.3]} 33...
Re8 {[%clk 0:01:24.2]} 34. Qg3 {[%clk 0:00:13.7]} 34... Qxd5+ {[%clk 0:01:24.4]}
35. Kh2 {[%clk 0:00:14.5]} 35... Re2+ {[%clk 0:01:24]} 36. Nf2 {[%clk
0:00:15.7]} 36... Qf5 {[%clk 0:01:23.3]} 37. Qf3 {[%clk 0:00:14.8]} 37... Rxf2+
{[%clk 0:01:23.6]} 38. Rxf2 {[%clk 0:00:15.6]} 38... Bxf2 {[%clk 0:01:23.5]} 39.
Qxf2 {[%clk 0:00:16.8]} 39... Qxf4+ {[%clk 0:01:24.4]} 40. Qxf4 {[%clk
0:00:18.1]} 40... Nxf4 {[%clk 0:01:26.3]} 41. b4 {[%clk 0:00:18.8]} 41... Nd5
{[%clk 0:01:27.3]} 42. b5 {[%clk 0:00:20.1]} 42... Kxg7 {[%clk 0:01:28.7]} 43.
Kg3 {[%clk 0:00:21.8]} 43... Kf6 {[%clk 0:01:30.3]} 0-1

[Event "*** Titled Tuesday Blitz"]
[Site "Chess.com"]
[Date "2019.06.04"]
[Round "4"]
[White "tbalabayev"]
[Black "BigAl"]
[Result "0-1"]
[WhiteElo "2350"]
[BlackElo "2374"]
[TimeControl "180+2"]
[EndTime "13:50:47 PDT"]
[Termination "BigAl won on time"]

1. Nf3 {[%clk 0:03:01.9]} 1... Nf6 {[%clk 0:02:57.1]} 2. g3 {[%clk 0:03:02.8]}
2... g6 {[%clk 0:02:58.5]} 3. Bg2 {[%clk 0:03:04.4]} 3... Bg7 {[%clk 0:03:00.4]}
4. O-O {[%clk 0:03:06]} 4... O-O {[%clk 0:03:02.3]} 5. d3 {[%clk 0:03:07.8]}
5... d6 {[%clk 0:03:04.2]} 6. Nbd2 {[%clk 0:03:09.4]} 6... c5 {[%clk 0:03:05.3]}
7. e4 {[%clk 0:03:11.3]} 7... Nc6 {[%clk 0:03:07.2]} 8. Re1 {[%clk 0:03:11.3]}
8... Rb8 {[%clk 0:03:08.8]} 9. a4 {[%clk 0:03:11.6]} 9... a6 {[%clk 0:03:10]}
10. c3 {[%clk 0:03:12.9]} 10... b5 {[%clk 0:03:11.1]} 11. axb5 {[%clk
0:03:13.3]} 11... axb5 {[%clk 0:03:13]} 12. Qc2 {[%clk 0:03:14.4]} 12... b4
{[%clk 0:03:14.5]} 13. Nf1 {[%clk 0:03:13.7]} 13... bxc3 {[%clk 0:03:14.9]} 14.
bxc3 {[%clk 0:03:15.6]} 14... Nd7 {[%clk 0:03:16]} 15. Bd2 {[%clk 0:03:16.6]}
15... Bb7 {[%clk 0:03:09]} 16. Ne3 {[%clk 0:03:17.1]} 16... Ra8 {[%clk
0:03:06.2]} 17. Ng4 {[%clk 0:03:17.2]} 17... e6 {[%clk 0:02:57.8]} 18. Bh6
{[%clk 0:03:09.4]} 18... Nde5 {[%clk 0:02:40.2]} 19. Bxg7 {[%clk 0:03:01]} 19...
Kxg7 {[%clk 0:02:40.5]} 20. Ne3 {[%clk 0:03:02.1]} 20... Nxf3+ {[%clk
0:02:40.1]} 21. Bxf3 {[%clk 0:03:02.7]} 21... Ne5 {[%clk 0:02:30.3]} 22. Bg2
{[%clk 0:03:02.4]} 22... Ba6 {[%clk 0:02:31.6]} 23. Rad1 {[%clk 0:02:56.2]}
23... Rb8 {[%clk 0:02:27.7]} 24. d4 {[%clk 0:02:50.4]} 24... cxd4 {[%clk
0:02:28.5]} 25. cxd4 {[%clk 0:02:52.1]} 25... Nd7 {[%clk 0:02:29.9]} 26. f4
{[%clk 0:02:42]} 26... Qa5 {[%clk 0:02:22.8]} 27. f5 {[%clk 0:02:38.8]} 27...
Rfc8 {[%clk 0:02:21.1]} 28. Qf2 {[%clk 0:02:36.9]} 28... exf5 {[%clk 0:02:15.5]}
29. exf5 {[%clk 0:02:30.5]} 29... Nf6 {[%clk 0:02:16.8]} 30. g4 {[%clk
0:02:25.8]} 30... g5 {[%clk 0:02:15]} 31. Ra1 {[%clk 0:02:10]} 31... Qb6 {[%clk
0:02:13.5]} 32. h4 {[%clk 0:01:53.2]} 32... h6 {[%clk 0:02:14.3]} 33. Nd5 {[%clk
0:01:50.8]} 33... Nxd5 {[%clk 0:02:15.8]} 34. Bxd5 {[%clk 0:01:52.4]} 34... Re8
{[%clk 0:02:09.6]} 35. f6+ {[%clk 0:01:51.9]} 35... Kf8 {[%clk 0:02:09.6]} 36.
hxg5 {[%clk 0:01:36]} 36... hxg5 {[%clk 0:02:10.5]} 37. Qd2 {[%clk 0:01:37.5]}
37... Re5 {[%clk 0:01:47.5]} 38. Rxa6 {[%clk 0:01:20]} 38... Rxe1+ {[%clk
0:01:44.7]} 39. Qxe1 {[%clk 0:01:14.1]} 39... Qxd4+ {[%clk 0:01:46]} 40. Kh2
{[%clk 0:00:06.5]} 40... Qxd5 {[%clk 0:01:46.9]} 0-1